Cogmind - Beta 13 @@@ ROGUE MODE // 2024.04.03 @ 02:18:51 Player: Bean Result: Destroyed by G-47 Trooper with Particle Gun Performance ------------- Evolutions (2) 1000 Regions Visited (6) 1200 Robots Destroyed (18) 90 Value Destroyed (321) 321 Prototype IDs (6) 120 Alien Tech Used (0) 0 Bonus (300) 300 TOTAL SCORE: 3031 Bonus ------- Aligned with FarCom 300 Cogmind --------- Core Integrity 0/550 Matter 231/300 Energy 43/100 System Corruption 0% Temperature Warning (371) Movement Core (700) Ox13 Location -8/Storage Parts ------- > --- POWER (1) -------- (None) > --- PROPULSION (2) --- Potential Leg > --- UTILITY (6) ------ High-capacity Storage Unit Visual Processing Unit Improved Signal Interpreter ECM Suite > --- WEAPON (2) ------- (None) > --- INVENTORY (20) --- Heavy Ion Engine Nuclear Core Nuclear Core Light Fission Core Visual Processing Unit Improved Terrain Scanner EM Pulse Gun Heavy Particle Gun Guided Plasma Cannon Mining Laser Peak State ------------ > --- POWER ------------ Heavy Ion Engine > --- PROPULSION ------- Potential Leg Potential Leg > --- UTILITY ---------- High-capacity Storage Unit Visual Processing Unit Improved Sensor Array Signal Interpreter Improved Terrain Scanner ECM Suite > --- WEAPON ----------- Advanced Beam Cannon Advanced Beam Cannon > --- INVENTORY -------- Heavy Ion Engine Nuclear Core Nuclear Core Light Fission Core Visual Processing Unit Sensor Array EM Pulse Gun Heavy Particle Gun Guided Plasma Cannon Mining Laser [Rating: 43] Favorites ----------- Power Light Ion Engine Engine Light Ion Engine Propulsion Potential Leg Leg Potential Leg Wheel Compact Wheel Utility Sensor Array Device Sensor Array Storage High-capacity Storage Unit Processor Visual Processing Unit Weapon Medium Laser Energy Gun Medium Laser Energy Cannon Guided Plasma Cannon Special Weapon Mining Laser Build | -11 -10 -10 -10 -9 -8 -8 ------- Run | Yrd Mat Min Exi Min Mat Sto Slots Evolved 4 | . . . . . 4 . Power . | . . . . . . . Propulsion . | . . . . . . . Utility 4 | . . . . . 4 . Weapon . | . . . . . . . Parts Attached 39 | 11 3 1 7 4 4 9 Power 4 | 1 1 . . 1 . 1 Engine 4 | 1 1 . . 1 . 1 Core . | . . . . . . . Reactor . | . . . . . . . Propulsion 4 | 2 . . 2 . . . Treads . | . . . . . . . Leg 2 | . . . 2 . . . Wheel 2 | 2 . . . . . . Hover . | . . . . . . . Flight . | . . . . . . . Utility 16 | 5 1 1 2 1 4 2 Device 10 | 3 1 1 1 1 2 1 Storage 3 | 2 . . 1 . . . Processor 3 | . . . . . 2 1 Hackware . | . . . . . . . Protection . | . . . . . . . Artifact . | . . . . . . . Weapon 15 | 3 1 . 3 2 . 6 Energy Gun 8 | 2 1 . 2 1 . 2 Energy Cannon 4 | . . . 1 1 . 2 Ballistic Gun . | . . . . . . . Ballistic Cannon . | . . . . . . . Launcher . | . . . . . . . Special Weapon 3 | 1 . . . . . 2 Impact Weapon . | . . . . . . . Slashing Weapon . | . . . . . . . Piercing Weapon . | . . . . . . . Special Melee Weapon . | . . . . . . . Unidentified Prototypes 6 | . . . 3 . . 3 Parts Lost 9 | . . 2 . 1 . 6 Power 2 | . . 1 . . . 1 Propulsion 1 | . . . . . . 1 Utility 3 | . . 1 . . . 2 Weapon 3 | . . . . 1 . 2 Highest Loss Streak 6 | . . 2 . 1 . 6 To Critical Strikes . | . . . . . . . Average Slot Usage (%) 88 | . 94 73 70 85 100 97 Engine 6 | . 14 4 . 7 9 8 Leg 15 | . . . 17 28 18 17 Wheel 7 | . 28 28 10 . . . Device 19 | . 14 12 14 10 27 25 Storage 11 | . 14 14 14 14 9 9 Processor 9 | . . . . . 18 18 Energy Gun 9 | . 13 14 13 14 9 5 Energy Cannon 5 | . . . . 10 9 9 Special Weapon 1 | . 9 . . . . . Naked Turns . | . . . . . . . Heaviest Build 60 | 11 13 13 43 56 59 60 Greatest Support 60 | 32 32 32 60 60 60 60 Greatest Overweight (x) 14 | . . . . 14 . . Average Overweight (x) . | . . . . . . . Largest Inventory Capacity 20 | 8 8 8 20 20 20 20 Average Capacity 15 | 7 8 8 12 20 20 20 Most Carried 13 | 5 8 7 10 11 7 13 Average Carried 6 | 1 5 6 7 9 4 7 Final Capacity 20 | 8 8 8 20 20 20 20 Final Carried 10 | 2 7 6 10 8 4 10 Class Distribution -------------------- 51% | Mutant 27% | Scavenger-Skirmisher 14% | Skirmisher 6% | Scavenger-Mutant Dominant Class ---------------- Mutant | -10/Materials Mutant | -10/Mines Mutant | -10/Exiles Skirmisher | -9/Mines Skirmisher | -8/Materials Scavenger-Skirmisher | -8/Storage Resources | -11 -10 -10 -10 -9 -8 -8 ----------- Run | Yrd Mat Min Exi Min Mat Sto Matter Collected 556 | 167 70 43 . 16 . 260 Remotely . | . . . . . . . Salvage Created 427 | 73 70 32 . 69 . 183 Parts 40 | 13 11 4 . 3 . 9 Haulers Intercepted . | . . . . . . . Recyclers Shooed . | . . . . . . . Parts Field Recycled . | . . . . . . . Retrieved Matter . | . . . . . . . Parts Self-Destructed . | . . . . . . . Prevented . | . . . . . . . Kills | -11 -10 -10 -10 -9 -8 -8 ------- Run | Yrd Mat Min Exi Min Mat Sto Combat Hostiles Destroyed 9 | . . 2 . 4 . 3 Guns 5 | . . 2 . 3 . . Cannons 4 | . . . . 1 . 3 Classes Destroyed 6 | 1 2 1 . . . 2 Worker 1 | . 1 . . . . . Tunneler 4 | 4 . . . . . . Watcher 4 | . 3 . . . . 1 Swarmer 6 | . . 2 . 4 . . Grunt 2 | . . . . . . 2 Sentry 1 | . . . . . . 1 Best Kill Streak 3 | 3 3 2 . 3 . 2 Combat Bots Only 3 | . . 2 . 3 . 2 Max Kills in Single Turn 1 | 1 1 1 . 1 . 1 Gunslinging . | . . . . . . . Exploded . | . . . . . . . Melee . | . . . . . . . Uniques/NPCs Destroyed . | . . . . . . . Combat | -11 -10 -10 -10 -9 -8 -8 -------- Run | Yrd Mat Min Exi Min Mat Sto Hostile Shots Fired 231 | . 1 29 . 101 . 100 Missed 57 | . 1 7 . 33 . 16 Damage Taken 2228 | . . 177 . 552 . 1499 Core 750 | . . 23 . 169 . 558 Absorbed by Shields . | . . . . . . . Regen/Repaired (Parts) 4 | . . . . . . 4 Core Remaining (%) 61 | 100 . . . 23 . . Volleys Fired 89 | 25 12 15 . 11 . 26 Largest 2 | 1 2 1 . 1 . 2 Hottest 150 | 100 150 50 . 120 . 136 Shots Fired 105 | 25 15 15 . 11 . 39 Gun 56 | 14 12 15 . 8 . 7 Cannon 29 | . . . . 3 . 26 Launcher . | . . . . . . . Special 20 | 11 3 . . . . 6 Kinetic . | . . . . . . . Thermal 88 | 17 15 15 . 9 . 32 Explosive . | . . . . . . . Electromagnetic 17 | 8 . . . 2 . 7 Robot Hit Streak 9 | 4 4 1 . 5 . 9 Robot Miss Streak 9 | 2 2 9 . 2 . 4 Penetration Max . | . . . . . . . Secondary Targets . | . . . . . . . Shots Hit Robots 49 | 8 8 2 . 9 . 22 Core Hits 21 | 4 4 2 . 4 . 7 Critical Kills . | . . . . . . . Critical Parts Destroyed . | . . . . . . . Critical Strikes 2 | 1 1 . . . . . Burn 2 | 1 1 . . . . . Melee Attacks . | . . . . . . . Impact . | . . . . . . . Slashing . | . . . . . . . Piercing . | . . . . . . . Sneak Attacks . | . . . . . . . Combat Hostiles . | . . . . . . . Follow-up Attacks . | . . . . . . . Damage Inflicted 1080 | 135 113 25 . 185 . 622 Guns 364 | 105 89 25 . 83 . 62 Cannons 511 | . . . . 102 . 409 Explosions 82 | 30 . . . . . 52 Melee . | . . . . . . . Ramming 99 | . . . . . . 99 Kinetic . | . . . . . . . Thermal 829 | 66 113 25 . 164 . 461 Explosive . | . . . . . . . Electromagnetic 152 | 69 . . . 21 . 62 Impact . | . . . . . . . Slashing . | . . . . . . . Piercing . | . . . . . . . Highest Corruption . | . . . . . . . Average Corruption . | . . . . . . . Corruption Purged . | . . . . . . . Corruption Blocked . | . . . . . . . Overload Shots . | . . . . . . . Overflow Damage 17 | . . . . . . 17 Projectiles . | . . . . . . . Explosions 17 | . . . . . . 17 Melee . | . . . . . . . Knockbacks 1 | . . . . . . 1 Impact 1 | . . . . . . 1 Kinetic . | . . . . . . . Secondary . | . . . . . . . Self-Inflicted Damage 45 | . . . . . . 45 Shots 1 | . . . . . . 1 Rammed 1 | . . . . . . 1 Targets Rammed 13 | . . . . . . 13 Kicked 12 | . . . . . . 12 Crushed . | . . . . . . . Highest Temperature 686 | 100 170 80 . 210 . 686 Average Temperature 143 | 54 65 49 . 117 . 306 Received Heat Transfer 513 | . . . . . . 513 Effects 23 | . . . . . . 23 Shutdowns 3 | . . . . . . 3 Energy Bleed 4 | . . . . . . 4 Interference 2 | . . . . . . 2 Matter Decay 2 | . . . . . . 2 Short Circuit 1 | . . . . . . 1 Damage (major) 9 | . . . . . . 9 Damage (core) 2 | . . . . . . 2 Siege Activations . | . . . . . . . Robots Corrupted . | . . . . . . . Combat Hostiles . | . . . . . . . Parts Fried . | . . . . . . . Impact Corruptions . | . . . . . . . Robots Melted . | . . . . . . . Combat Hostiles . | . . . . . . . Parts Melted 4 | 1 1 . . . . 2 Heat Transferred 1857 | 185 383 74 . 425 . 790 Parts Sabotaged . | . . . . . . . Parts Stolen . | . . . . . . . Parts Stripped . | . . . . . . . Power Chain Reactions 2 | 1 . . . . . 1 Alert | -11 -10 -10 -10 -9 -8 -8 ------- Run | Yrd Mat Min Exi Min Mat Sto Peak Influence 155 | 20 116 80 . 95 37 155 Initial 45 | . 13 45 . . 37 15 Average 44 | 11 63 72 . 46 37 43 Maximum Alert Level . | . . . . . . . Low Security (%) 100 | 100 100 100 . 100 100 100 Level 1 . | . . . . . . . Level 2 . | . . . . . . . Level 3 . | . . . . . . . Level 4 . | . . . . . . . Level 5 . | . . . . . . . High Security . | . . . . . . . Max Security . | . . . . . . . Squads Dispatched 5 | . 2 . . . . 3 Investigation 2 | . 1 . . . . 1 Extermination . | . . . . . . . Reinforcement 3 | . 1 . . . . 2 Assault . | . . . . . . . Garrison . | . . . . . . . Intercept . | . . . . . . . Searches Triggered . | . . . . . . . Construction Impeded . | . . . . . . . Haulers Reinforced . | . . . . . . . Active Scanning Responses . | . . . . . . . Cargo Convoy Interrupts . | . . . . . . . Stealth | -11 -10 -10 -10 -9 -8 -8 --------- Run | Yrd Mat Min Exi Min Mat Sto Distress Signals 2 | . . . . . . 2 Communications Jammed . | . . . . . . . Distress Signals . | . . . . . . . Times Spotted 40 | . 7 3 . 8 . 22 Peak Tracking Total 7 | . 4 3 . 7 . 7 Tactical Retreats 7 | . 1 . . 1 . 5 Traps | -11 -10 -10 -10 -9 -8 -8 ------- Run | Yrd Mat Min Exi Min Mat Sto Traps Triggered . | . . . . . . . Indirectly . | . . . . . . . Trap Hack Attempts . | . . . . . . . Triggered . | . . . . . . . Disarmed . | . . . . . . . Reprogrammed . | . . . . . . . Reused . | . . . . . . . Traps Extracted . | . . . . . . . Installed . | . . . . . . . Triggered . | . . . . . . . Machines | -11 -10 -10 -10 -9 -8 -8 ---------- Run | Yrd Mat Min Exi Min Mat Sto Machines Disabled 2 | . 1 . . . . 1 Max in Single Turn 1 | . 1 . . . . 1 Machines Repaired . | . . . . . . . Machines Dismantled . | . . . . . . . Machines Sabotaged . | . . . . . . . Overloaded Fab Kills . | . . . . . . . Hacking | -11 -10 -10 -10 -9 -8 -8 --------- Run | Yrd Mat Min Exi Min Mat Sto Machines Accessed 9 | . 1 . 1 . . 7 Terminals 5 | . 1 . . . . 4 Fabricators . | . . . . . . . Repair Stations 1 | . . . . . . 1 Recycling Units 1 | . . . . . . 1 Scanalyzers . | . . . . . . . Garrison Access 1 | . . . . . . 1 Total Hacks 30 | . 4 . 9 . . 17 Successful 21 | . 1 . 9 . . 11 Failed 9 | . 3 . . . . 6 Catastrophic 2 | . 1 . . . . 1 Database Lockouts . | . . . . . . . Manual 18 | . 4 . 2 . . 12 Terminals 14 | . 4 . . . . 10 Fabricators . | . . . . . . . Repair Stations 5 | . . . . . . 5 Recycling Units 1 | . . . . . . 1 Scanalyzers . | . . . . . . . Garrison Access 1 | . . . . . . 1 Terminal Hacks 13 | . 1 . 9 . . 3 Record 10 | . . . 9 . . 1 Open Door 1 | . . . . . . 1 Alert Level 1 | . . . . . . 1 Unreport Threat 1 | . 1 . . . . . Fabricator Hacks . | . . . . . . . Repair Station Hacks 4 | . . . . . . 4 Scan Component 2 | . . . . . . 2 Repair 2 | . . . . . . 2 Recycling Unit Hacks . | . . . . . . . Scanalyzer . | . . . . . . . Garrison Access Hacks . | . . . . . . . Unauthorized Hacks 4 | . . . . . . 4 Terminals 2 | . . . . . . 2 Botnet 2 | . . . . . . 2 Fabricators . | . . . . . . . Repair Stations . | . . . . . . . Recycling Units 1 | . . . . . . 1 Monitor 1 | . . . . . . 1 Scanalyzers . | . . . . . . . Garrison Access 1 | . . . . . . 1 Decoy 1 | . . . . . . 1 Data Cores Recovered . | . . . . . . . Used . | . . . . . . . Hacking Detections 5 | . 1 . . . . 4 Full Trace Events 2 | . 1 . . . . 1 Feedback Events . | . . . . . . . Feedback Blocked . | . . . . . . . Robot Schematics Acquired . | . . . . . . . Robots Built . | . . . . . . . Authchips . | . . . . . . . Time . | . . . . . . . Total Robot Build Rating . | . . . . . . . Part Schematics Acquired . | . . . . . . . Parts Built . | . . . . . . . Authchips . | . . . . . . . Time . | . . . . . . . Total Part Build Rating . | . . . . . . . Parts Repaired 2 | . . . . . . 2 Time 106 | . . . . . . 106 Parts Recycled . | . . . . . . . Recycled Matter . | . . . . . . . Retrieved Matter . | . . . . . . . Retrieved Components . | . . . . . . . Parts Scanalyzed . | . . . . . . . Part Schematics Acquired . | . . . . . . . Parts Damaged . | . . . . . . . Bothacking | -11 -10 -10 -10 -9 -8 -8 ------------ Run | Yrd Mat Min Exi Min Mat Sto Used RIF Installer . | . . . . . . . Robots Hacked . | . . . . . . . Non-combat . | . . . . . . . Combat . | . . . . . . . Robot Hacks Applied . | . . . . . . . Relay Couplers Released . | . . . . . . . Fabnet Peak Effective % . | . . . . . . . Robots Rewired . | . . . . . . . Allies Hacked . | . . . . . . . Hacks Repelled . | . . . . . . . Allies | -11 -10 -10 -10 -9 -8 -8 -------- Run | Yrd Mat Min Exi Min Mat Sto Total Allies . | . . . . . . . Largest Group . | . . . . . . . Highest-Rated Group . | . . . . . . . Highest-Rated Ally . | . . . . . . . Total Orders . | . . . . . . . Ally Attacks . | . . . . . . . Total Damage . | . . . . . . . Kills . | . . . . . . . Allies Corrupted . | . . . . . . . Allies Melted . | . . . . . . . Intel | -11 -10 -10 -10 -9 -8 -8 ------- Run | Yrd Mat Min Exi Min Mat Sto Robot Analysis Total . | . . . . . . . Derelict Logs Recovered . | . . . . . . . Drone Launches . | . . . . . . . Drone Recoveries . | . . . . . . . Exploration | -11 -10 -10 -10 -9 -8 -8 ------------- Run | Yrd Mat Min Exi Min Mat Sto Turns Passed 2462 | 215 297 75 634 78 14 1149 Spaces Moved 1665 | 113 240 45 656 53 12 546 Core 3 | 2 . . . 1 . . Treads . | . . . . . . . Legs 1044 | . . . 434 52 12 546 Wheels 618 | 111 240 45 222 . . . Hover . | . . . . . . . Flight . | . . . . . . . Fastest Speed 45 | 50 100 100 90 45 90 90 Average Speed 93 | 99 100 100 93 88 90 90 Slowest Speed 750 | 100 100 100 100 750 90 90 Overloaded Moves 17 | . . . . 17 . . Propulsion Burnouts . | . . . . . . . Robots Hopped . | . . . . . . . Cave-ins Triggered . | . . . . . . . Exploration Rate (%) 28 | 6 28 16 76 30 3 40 Regions Visited 6 Branch Regions 4 Pre-discovered Areas . | . . . . . . . Known Exits Taken 1 | . . . . . 1 . Unknown Exits Taken 5 | 1 1 1 1 1 . . Scrap Searched . | . . . . . . . Spaces Dug 2 | 2 . . . . . . Terrain Destroyed 6 | 3 . . . . . 3 Melee . | . . . . . . . Projectile 3 | 3 . . . . . . AOE 3 | . . . . . . 3 Terrain Rammed . | . . . . . . . Walls Destroyed . | . . . . . . . Machines Disabled . | . . . . . . . Actions | -11 -10 -10 -10 -9 -8 -8 --------- Run | Yrd Mat Min Exi Min Mat Sto Total 2425 | 171 279 60 680 73 15 1147 Wait 554 | 6 11 . . 4 . 533 Move 1659 | 112 239 44 655 52 11 546 Hop . | . . . . . . . Pick Up 42 | 11 9 . 11 1 . 10 Fast Attach . | . . . . . . . Attach 37 | 10 3 1 7 4 4 8 Detach 13 | 3 1 . . 1 . 8 Swap 2 | 1 . . . . . 1 Drop 16 | 3 4 . 7 . . 2 Fire 89 | 25 12 15 . 11 . 26 Melee . | . . . . . . . Ram 1 | . . . . . . 1 Kick 12 | . . . . . . 12 Crush . | . . . . . . . Escape Stasis . | . . . . . . . Rewire . | . . . . . . . Trap . | . . . . . . . Miscellaneous . | . . . . . . . Route ------- -11/Scrapyard -10/Materials -10/Mines -10/Exiles (discovered 2 exits: [*Min x2]) -9/Mines -8/Materials -8/Storage History --------- Turn | Location | Event 12 | -11/Scrapyard | Discovered new exit (range 16) 216 | -11/Scrapyard | Entered Materials 317 | -10/Materials | Build established: Mutant 493 | -10/Materials | Discovered new exit (range 16) 513 | -10/Materials | Entered Mines 584 | -10/Mines | Deemed a non-threat by the Exiles lab entrance 584 | -10/Mines | Discovered new exit (range 5) 588 | -10/Mines | Entered Exiles 613 | -10/Exiles | Met 8R-AWN 627 | -10/Exiles | Met EX-HEX 658 | -10/Exiles | Met EX-BIN 775 | -10/Exiles | Aligned with FarCom system 776 | -10/Exiles | Given EX-Vault access code 800 | -10/Exiles | Opened EX-Vault 809 | -10/Exiles | Found Prototype Leg 811 | -10/Exiles | Found Prototype Leg 814 | -10/Exiles | Identified Potential Leg (x2) 817 | -10/Exiles | Found Prototype Energy Cannon 822 | -10/Exiles | Identified Gui. Plasma Cannon 825 | -10/Exiles | Found Prototype Energy Gun 828 | -10/Exiles | Identified AWS/Thermal 853 | -10/Exiles | Warned to stay clear of 0b10 Research branches 882 | -10/Exiles | Met EX-DEC 912 | -10/Exiles | Visited The Gauntlet 992 | -10/Exiles | Discovered new exit (range 12) 1098 | -10/Exiles | Discovered new exit (range 15) 1222 | -10/Exiles | Stole two prototypes: Potential Leg, Gui. Plasma Cannon 1222 | -10/Exiles | Entered Mines 1237 | -9/Mines | Met a Derelict bent on vengeance 1258 | -9/Mines | Core integrity fell below 50% 1287 | -9/Mines | Discovered new exit (range 14) 1300 | -9/Mines | Entered Materials 1300 | -8/Materials | Evolved 4 slots: Utility x4 1301 | -8/Materials | Discovered new exit (range 8) 1314 | -8/Materials | Identified exit to Storage 1314 | -8/Materials | Entered Storage 1609 | -8/Storage | Build established: Scavenger-Skirmisher 2284 | -8/Storage | Repaired Corrupted Imp. Sensor Array 2338 | -8/Storage | Repaired Corrupted Imp. Signal Interpreter 2439 | -8/Storage | Build established: Skirmisher 2443 | -8/Storage | Core integrity fell below 50% 2460 | -8/Storage | Core integrity fell below 20% 2463 | -8/Storage | Destroyed by G-47 Trooper with Particle Gun Last Messages --------------- Overheating: Hcp. Storage Unit damaged (-291). Kicked G-47 Trooper out of the way. Adv. Beam Cannon destroyed. Kicked G-47 Trooper. K-01 Serf collects debris. Power failure, Hvy. Ion Engine shutdown. Kicked G-47 Trooper. G-47 Trooper knocked back. Kicked G-47 Trooper. Penetrated by Slug. Potential Leg destroyed. Signal Interpreter destroyed. Adv. Beam Cannon destroyed. Slammed into G-47 Trooper. Imp. Sensor Array destroyed. Overheating: Energy bleed (-10). Hvy. Ion Engine destroyed. K-01 Serf cleans the Transfer Shaft. Penetrated by Slug. Overheating: Matter decay (-69). Map ----- +----------------------------------------------------+ | ??????????????????????????????????????????" # # | | ???????????????????????????????????#?? ? # # | | ?????????????????????????????? ??? ? ? # # | | ?????????????????????????????????????? # # | | ??????????????????????????????????##?######## ## | | ???????????????????????????????????????#??#?# # | | ?????????????????????????????????????#??#?### # | | ??????????????????????????????????????#?????# # | | ??????????????????????????????????#???####?## # | | ??????????????????????????????????????##??### + | | ?????????????????????????????????????###?#??# # | | ????????????????????????????????????##??????# # | | ?????????????????????????????????? ?? ??#?#?# # | | ????????????????????????????????????" ?###?## # | | ??????????????????????????????????? "??#?#?## ## | | ????????????????????????????????????????#?### ## | | ????????????????????????????????????" ??##??# # | | ??????????????????????????????????????????#?# # | | ??????????????????????????? ????? ?? ??#??## # | | ????????????????########## ????? ?????#???#T + | | ????????????????# """"" # ??????#??????#?## ## | | ???????????????Y# ""T"" # ?????#?#??#??Y??# ## | | ????????????????# # #???????????? ?? # #? | | ????????????????# = [# #??#??????????? ?# ## | | ????????????????#######+## ########?????? # #? | | ?????????????????######*g@g ku +?????????# #? | | ?????????????????#[[ #ghg g #T###? ???????# # | | ?????????????????#[[ # """k #?????????? ? # # | | ?????????????????#[[ /kg""" #????????? ???# # | | ?????????????????####T# """ #????????? ???# + | | ????????????????????### ##??#####+##### # | | ??????????????????????# a#???# #? | | ??????????????????????####### #???# #? | | ????????????????????????????# #???# ## | | ????????????????????????????# #???# ####### #? | | ???????????????????????###### #???# ####### ## | | ???????????????????????# # ##### # !/ # # | | ???????????????????????# # # # # | | ???????????????????????# # w # # # | | ???????????????????????# # # / + | | ???????????????????????# " ""T"" # # # | | ???????????????????????# # """"" / # + | | ???????????????????????# # # ! # # | | ???????????????????????# # # = + # | | ???????????????????????# # ######+#########+### | | ???????????????????????###/## #????# ## | | ?????????????????????????# #???#T ## """ | | ?????????????????????????# ##+#???##" "### "G" !] | | ?????????????????????????# # ????? ?# " " !] | | ????????????????????????? + #? ? ## = | +----------------------------------------------------+ Best States ------------- Heat Dissipation 31 Energy Generation 14 Energy Capacity 280 Matter Stores 300 Matter Capacity 300 Sight Range 18 Robot Scan Range 15 Terrain Scan Range 16 Terrain Scan Density 10 ECM Strength 1 Evasion (%) 66 Item Schematics ----------------- None Robot Schematics ------------------ None Fabricated ------------ Nothing Alien Tech Used ----------------- None Achievements -------------- Everything Is Under Control I Spy Challenges ------------ None Game ------ Seed AngularThiefKinecellerator Manual? 0 Play Time 00:31:01 Cumulative 6.1 hours Start 2024.04.03 @ 01:49:51 End 2024.04.03 @ 02:18:51 Sessions 1 Manual Loads 0 Difficulty Rogue Special Mode None Game No. 13 Rogue 13 Adventurer 0 Explorer 0 Win Type - Total 0 Types 0/0/0/0/0/0/0/0/0 Lore% 16 Gallery% 14 Achievement% 14 Wizard Run 0 Options --------- Layout 2 ASCII 0 Keyboard 0 Movement Numpad Keybinds 0 Fullscreen 1 Font 24/Smallcaps Map View 50x44 Zoom Use 0% Tactical HUD 0 Map Filters NONE Filters NONE Steam X RUN: ee0f55f6-7f9f-4877-b054-1abfe36613b4